bitfinex/quotes_BTCUSD_20251114
["timestamp","ask_amount","ask_price","bid_price","bid_amount"]
[1763084239893,0.188863,99433.0,99432.0,0.004]
[1763084240114,0.00045805,99433.0,99432.0,0.004]
[1763084240741,0.36110805,99433.0,99432.0,0.002]
[1763084240950,0.20114248,99432.0,99430.0,0.0004]
[1763084241164,0.09204454,99431.0,99430.0,0.0004]
[1763084241371,0.12969454,99431.0,99430.0,0.0004]
[1763084241811,0.45269454,99431.0,99430.0,0.0004]
[1763084242469,0.45269454,99431.0,99430.0,0.0014]
[1763084242719,0.36065,99431.0,99430.0,0.0004]
[1763084243776,0.36065,99431.0,99430.0,0.0014]
[1763084243985,0.36065,99431.0,99430.0,0.0024]
[1763084244416,0.40406874,99431.0,99430.0,0.0014]
[1763084244627,0.5025521,99431.0,99430.0,0.0024]
[1763084244855,0.5025521,99431.0,99416.0,0.0049038]
[1763084244856,0.52417283,99417.0,99416.0,0.0049038]
[1763084245080,0.58539283,99417.0,99416.0,0.0049038]
[1763084246207,0.58539283,99417.0,99394.0,0.02502]
[1763084246208,0.20121736,99395.0,99394.0,0.02502]
[1763084246435,0.20121736,99395.0,99390.0,0.0004]
[1763084246436,0.20122546,99391.0,99390.0,0.0004]
[1763084246665,0.65224416,99391.0,99390.0,0.0004]
[1763084247554,0.65270193,99391.0,99390.0,0.0004]
[1763084247773,0.65270193,99391.0,99390.0,0.0014]
[1763084247774,0.41382647,99391.0,99390.0,0.0014]
[1763084247992,0.41382647,99391.0,99390.0,0.0024]
[1763084248200,0.32345777,99391.0,99390.0,0.00244]
[1763084248416,0.00045777,99391.0,99390.0,0.00244]
[1763084248629,0.00045777,99391.0,99390.0,0.20366748]
[1763084249058,0.00045777,99391.0,99390.0,0.25328748]
[1763084249532,0.00045777,99391.0,99390.0,0.22366748]
[1763084249762,0.00045777,99391.0,99390.0,0.20266748]
[1763084250202,0.00045777,99391.0,99390.0,0.20466748]
[1763084250452,0.20114166,99433.0,99427.0,0.20115228]
[1763084250656,0.44731092,99440.0,99431.0,0.20114367]
[1763084250898,0.77031092,99440.0,99439.0,0.02225]
[1763084251095,0.44730991,99450.0,99439.0,0.02225]
[1763084251324,0.0903687,99442.0,99439.0,0.02225]
[1763084251532,0.02753,99453.0,99439.0,0.02225]
[1763084251533,0.20109995,99454.0,99446.0,0.20111227]
[1763084251742,0.20109995,99454.0,99440.0,0.04962]
[1763084251743,0.20110816,99449.0,99442.0,0.20112096]
[1763084251955,0.1178987,99459.0,99439.0,0.02225]
[1763084251956,0.323,99453.0,99439.0,0.02225]
[1763084252166,0.20112561,99441.0,99439.0,0.02225]
[1763084252813,0.01873668,99440.0,99439.0,0.02225]
[1763084253022,0.20113844,99434.0,99433.0,0.02225]
[1763084253232,0.20113844,99434.0,99431.0,0.001]
[1763084253233,0.20114653,99430.0,99427.0,6.053e-05]
[1763084253441,0.20115058,99428.0,99427.0,6.053e-05]
[1763084253657,0.21988726,99428.0,99427.0,6.053e-05]
[1763084253884,0.57828726,99428.0,99427.0,6.053e-05]
[1763084254517,0.54288726,99428.0,99427.0,0.00206053]
[1763084254726,0.54288726,99428.0,99427.0,0.00406053]
[1763084255168,0.54288726,99428.0,99427.0,0.00206053]
[1763084255414,0.64137062,99428.0,99427.0,0.00306053]
[1763084255624,0.67677062,99428.0,99427.0,0.00306053]
[1763084255831,0.67677062,99428.0,99427.0,0.00106053]
[1763084256008,0.64137062,99428.0,99427.0,0.00106053]
[1763084256238,0.64137062,99428.0,99427.0,0.00206053]
[1763084256868,0.54288726,99428.0,99427.0,0.00206053]
[1763084258626,0.34173668,99428.0,99427.0,0.00206053]
[1763084258854,0.29149161,99442.0,99427.0,0.00206053]
[1763084258855,0.20115049,99429.0,99427.0,0.00206053]
[1763084259073,0.29149161,99442.0,99427.0,0.00206053]
[1763084259074,0.01870771,99428.0,99427.0,0.00206053]
[1763084259296,0.20114039,99434.0,99428.0,0.02225]
[1763084259515,0.01870585,99433.0,99431.0,0.20114383]
[1763084259733,0.20113691,99435.0,99430.0,0.20114567]
[1763084259937,0.0187056,99434.0,99433.0,0.20113996]
[1763084260146,0.20114855,99429.0,99428.0,0.02225]
[1763084260550,0.20114694,99430.0,99428.0,0.02225]
[1763084260833,0.323,99439.0,99428.0,0.22339868]
[1763084261045,0.20114226,99433.0,99429.0,0.20114762]
[1763084261251,0.52412842,99439.0,99428.0,0.02225]
[1763084261459,0.20113288,99437.0,99433.0,0.20113871]
[1763084261670,0.01870357,99436.0,99435.0,0.20113642]
[1763084261878,0.01870357,99436.0,99428.0,0.02325]
[1763084261879,0.323,99440.0,99430.0,0.001]
[1763084262089,0.0187029,99439.0,99437.0,0.20113195]
[1763084262303,0.20113784,99435.0,99428.0,0.27301889]
[1763084262509,0.20113396,99437.0,99434.0,0.20113771]
[1763084262735,0.20111473,99446.0,99433.0,0.001]
[1763084262949,0.0187028,99445.0,99440.0,0.20112561]
[1763084263157,0.02154627,99457.0,99438.0,0.03495]
[1763084263368,0.323,99454.0,99444.0,0.20111799]
[1763084263577,0.20110961,99449.0,99446.0,0.20111321]
[1763084263781,0.01870184,99448.0,99443.0,0.20111966]
[1763084263989,0.20111456,99446.0,99443.0,0.20111966]
[1763084264420,0.20110926,99449.0,99434.0,0.04962]
[1763084264636,0.20112193,99443.0,99434.0,0.04962]
[1763084264845,0.20112013,99444.0,99441.0,0.20112337]
[1763084265054,0.20111426,99446.0,99442.0,0.23607201]
[1763084265281,0.20111679,99445.0,99442.0,0.03495]
[1763084265529,0.20111852,99444.0,99442.0,0.03495]
[1763084265949,0.20111858,99444.0,99442.0,0.03495]
[1763084266197,0.20111254,99447.0,99442.0,0.23607201]
[1763084266470,0.20110877,99449.0,99445.0,0.20111468]
[1763084266710,0.21981701,99448.0,99444.0,0.20111804]
[1763084266916,0.01005328,99470.0,99451.0,0.02737]
[1763084267129,0.01005328,99470.0,99452.0,0.03495]
[1763084267130,0.02805661,99469.0,99452.0,0.03495]
[1763084267351,0.02805654,99468.0,99452.0,0.23605001]
[1763084267563,0.2010908,99458.0,99454.0,0.20109724]
[1763084267773,0.01870436,99457.0,99456.0,0.20109362]
[1763084267982,0.01870898,99459.0,99456.0,0.20109362]
[1763084268195,0.01870898,99458.0,99452.0,0.20110203]
[1763084268413,0.0269194,99480.0,99451.0,0.07699]
[1763084268414,0.43725461,99480.0,99468.0,0.03495]
[1763084268621,0.20106625,99470.0,99468.0,0.03495]
[1763084268828,0.01871414,99469.0,99468.0,0.23601934]
[1763084269040,0.01871414,99469.0,99468.0,0.20106934]
[1763084269252,0.01871414,99469.0,99468.0,0.20106969]
[1763084269644,0.01871414,99469.0,99468.0,0.20213022]
[1763084269906,0.04069094,99469.0,99468.0,0.00106053]
[1763084270119,0.01871414,99469.0,99468.0,0.00106053]
[1763084270327,0.01871414,99469.0,99468.0,6.053e-05]
[1763084270539,0.01871414,99469.0,99468.0,0.00106053]
[1763084270764,0.01871414,99469.0,99468.0,0.00206053]
[1763084271766,0.02807968,99469.0,99468.0,0.00206053]
[1763084272179,0.01871414,99469.0,99468.0,0.00206053]
[1763084272376,0.02808176,99469.0,99468.0,0.00106053]
[1763084272584,0.02808176,99469.0,99468.0,6.053e-05]
[1763084272781,0.02808176,99469.0,99468.0,0.00106053]
[1763084272999,0.02808176,99469.0,99468.0,0.00206053]
[1763084273402,0.01873976,99469.0,99468.0,0.00206053]
[1763084274367,0.4594394,99469.0,99468.0,0.00206053]
[1763084275158,0.4594394,99469.0,99468.0,0.00106053]
[1763084275364,0.46881316,99469.0,99468.0,0.00206053]
[1763084275659,0.4594394,99469.0,99468.0,0.00106053]
[1763084275869,0.4594394,99469.0,99468.0,6.053e-05]
[1763084276089,0.4594394,99469.0,99468.0,0.00106053]
[1763084276306,0.0100553,99450.0,99426.0,0.04962]
[1763084276508,0.0903687,99451.0,99429.0,0.04962]
[1763084276715,0.02753,99466.0,99440.0,0.02]
[1763084276922,0.43725461,99450.0,99430.0,0.01005732]
[1763084277128,0.20112451,99441.0,99435.0,0.20113489]
[1763084277300,0.02753,99449.0,99431.0,0.04314]
[1763084277472,0.20113181,99438.0,99434.0,0.20113773]
[1763084277678,0.43725461,99450.0,99439.0,0.20112727]
[1763084277891,0.20111714,99445.0,99442.0,0.20112197]
[1763084278272,0.0903687,99444.0,99435.0,0.20113604]
[1763084278462,0.20113044,99438.0,99433.0,0.20113978]
[1763084278659,0.20113651,99435.0,99430.0,0.20114567]
[1763084278906,0.43725461,99452.0,99435.0,0.20113441]
[1763084279117,0.20112868,99439.0,99435.0,0.20113441]
[1763084279321,0.2011328,99437.0,99434.0,0.20113835]
[1763084279550,0.20113439,99436.0,99435.0,0.001]
[1763084279696,0.20113439,99436.0,99428.0,0.02236539]
[1763084279697,0.20113439,99436.0,99433.0,0.002]
[1763084279865,0.20113806,99435.0,99433.0,0.002]
[1763084280065,0.22629844,99434.0,99433.0,0.002]
[1763084280485,0.26044844,99434.0,99433.0,0.002]
[1763084280773,0.20114855,99429.0,99428.0,0.00011539]
[1763084280998,0.0903687,99434.0,99428.0,0.00011539]
[1763084281233,0.20111941,99444.0,99437.0,0.03408]
[1763084281465,0.0903687,99443.0,99428.0,0.00011539]
[1763084281685,0.20114796,99430.0,99428.0,0.00011539]
[1763084281892,0.04557584,99444.0,99428.0,0.00211539]
[1763084282105,0.3330553,99450.0,99433.0,0.001]
[1763084282106,0.323,99448.0,99433.0,0.001]
[1763084282317,0.201117,99445.0,99443.0,0.03408]
[1763084282530,0.2011163,99447.0,99441.0,0.20112369]
[1763084282736,0.2011163,99447.0,99445.0,0.03408]
[1763084283364,0.20111295,99447.0,99445.0,0.03408]
[1763084283805,0.27363547,99447.0,99445.0,0.03408]
[1763084284031,0.07252252,99447.0,99428.0,0.00011539]
[1763084284230,0.20114601,99431.0,99428.0,0.00011539]
[1763084284516,0.20114775,99430.0,99428.0,0.00011539]
[1763084284739,0.20114666,99432.0,99428.0,0.20126582]
[1763084284740,0.20114301,99432.0,99428.0,0.20126582]
[1763084284954,0.05001,99459.0,99437.0,0.03408]
[1763084285161,0.20111417,99446.0,99445.0,0.001]
[1763084285382,0.20113035,99438.0,99437.0,0.03408]
[1763084286223,0.2011485,99430.0,99428.0,0.00211539]
[1763084286656,0.06033843,99438.0,99429.0,0.20114694]
[1763084286868,0.20113237,99439.0,99437.0,0.03211]
[1763084287104,0.20112693,99440.0,99439.0,0.03211]
[1763084287536,0.20113035,99438.0,99437.0,0.001]
[1763084288186,0.42732347,99463.0,99428.0,0.00011539]
[1763084288187,0.20111699,99445.0,99428.0,0.00011539]
[1763084288428,0.20112205,99443.0,99435.0,0.20113529]
[1763084288650,0.20112878,99439.0,99435.0,0.20113529]
[1763084288871,0.20112878,99439.0,99435.0,0.20113612]
[1763084289099,0.20112878,99439.0,99437.0,0.002]
[1763084289321,0.0903687,99444.0,99437.0,0.001]
[1763084289535,0.323,99449.0,99446.0,0.03211]
[1763084289763,0.0100553,99450.0,99448.0,0.03211]
[1763084289968,0.2011103,99449.0,99448.0,0.03211]
[1763084290178,0.2011103,99449.0,99435.0,0.002]
[1763084290179,0.09363644,99449.0,99435.0,0.002]
[1763084290393,0.20113439,99436.0,99435.0,0.002]
[1763084291047,0.20114855,99429.0,99428.0,0.00011539]
[1763084293274,0.20113439,99436.0,99428.0,0.00011539]
[1763084293492,0.10042299,99460.0,99437.0,0.03211]
[1763084293701,0.20112832,99439.0,99437.0,0.05231]
[1763084294123,0.20114855,99429.0,99428.0,0.00011539]
[1763084294342,0.23469855,99429.0,99428.0,0.00011539]
[1763084294763,0.32506725,99429.0,99428.0,0.00011539]
[1763084294968,0.32506725,99429.0,99428.0,0.00111539]
[1763084295175,0.32506725,99429.0,99428.0,0.00011539]
[1763084295387,0.32506725,99429.0,99428.0,0.00111539]
[1763084295605,0.72080301,99429.0,99428.0,0.00111539]
[1763084295809,0.72080301,99429.0,99428.0,0.00011539]
[1763084296254,0.20119105,99408.0,99407.0,0.00023203]
[1763084296460,0.20119105,99408.0,99407.0,0.00034745]
[1763084297103,0.20120724,99400.0,99399.0,0.01622745]
[1763084297331,0.20120724,99400.0,99399.0,0.01635713]
[1763084297538,0.20120724,99400.0,99399.0,0.00012968]
[1763084298196,0.23475724,99400.0,99399.0,0.00012968]
[1763084298406,0.23475724,99400.0,99390.0,0.00044]
[1763084298407,0.20122546,99391.0,99390.0,0.00044]
[1763084298623,0.29958007,99391.0,99390.0,0.0005697]
[1763084299932,0.62258007,99391.0,99390.0,0.0005697]
[1763084300349,0.62258007,99391.0,99390.0,0.0015697]
[1763084300778,0.66599881,99391.0,99390.0,0.0015697]
[1763084302065,0.5922042,99391.0,99390.0,0.0015697]
[1763084302277,0.5922042,99391.0,99390.0,0.0005697]
[1763084303252,0.54878546,99391.0,99390.0,0.0005697]
[1763084303468,0.54878546,99391.0,99390.0,0.00200805]
[1763084304094,0.323,99391.0,99390.0,0.00200805]
[1763084304321,0.20122514,99392.0,99390.0,0.00200805]
[1763084304541,0.20122514,99392.0,99390.0,0.0015697]
[1763084305083,0.20122514,99392.0,99390.0,0.0005697]
[1763084305309,0.14763615,99391.0,99390.0,0.0005697]
[1763084305501,0.14763615,99391.0,99390.0,0.0035697]
[1763084305704,0.20445485,99391.0,99390.0,0.0035697]
[1763084305904,0.20445485,99391.0,99390.0,0.0015697]
[1763084306104,0.23800485,99391.0,99390.0,0.0015697]
[1763084306329,0.56100485,99391.0,99390.0,0.0025697]
[1763084306538,0.56100485,99391.0,99390.0,0.0015697]
[1763084306791,0.56100485,99391.0,99390.0,0.0005697]
[1763084307172,0.47063615,99391.0,99390.0,0.0015697]
[1763084307376,0.323,99391.0,99390.0,0.0015697]
[1763084307536,0.4133687,99391.0,99390.0,0.0015697]
[1763084308153,0.20122424,99392.0,99390.0,0.0015697]
[1763084308393,0.0903687,99391.0,99390.0,0.0015697]
[1763084309408,0.0903687,99391.0,99390.0,0.0005697]
[1763084309628,0.0903687,99391.0,99390.0,0.0015697]
[1763084309814,0.20122424,99392.0,99390.0,0.0015697]
[1763084310020,0.0903687,99391.0,99390.0,0.00100805]
[1763084310435,0.0903687,99391.0,99390.0,0.00200805]
[1763084310639,0.20122424,99392.0,99390.0,0.00200805]
[1763084310848,0.0903687,99391.0,99390.0,0.0015697]
[1763084311271,0.0903687,99391.0,99390.0,0.00200805]
[1763084311477,0.29159416,99391.0,99390.0,0.00200805]
[1763084311900,0.64701416,99391.0,99390.0,0.00200805]
[1763084312104,0.74549752,99391.0,99390.0,0.00200805]
[1763084313139,0.65512882,99391.0,99390.0,0.00200805]
[1763084313973,0.74549752,99391.0,99390.0,0.00200805]
[1763084316021,0.61459416,99391.0,99390.0,0.00200805]
[1763084316835,0.64701416,99391.0,99390.0,0.00200805]
[1763084317011,0.61459416,99391.0,99390.0,0.00300805]
[1763084317844,0.61459416,99391.0,99390.0,0.00200805]
[1763084318987,0.20122365,99393.0,99390.0,0.00200805]
[1763084319192,0.20122441,99392.0,99390.0,0.0015697]
[1763084319615,0.55017842,99400.0,99390.0,0.0015697]
[1763084319616,0.20122546,99391.0,99390.0,0.0015697]
[1763084319788,0.29159416,99391.0,99390.0,0.0015697]
[1763084320307,0.29159416,99391.0,99390.0,0.0025697]
[1763084320546,0.35925487,99391.0,99390.0,0.0025697]
[1763084320756,0.39167487,99391.0,99390.0,0.0025697]
[1763084320956,0.71467487,99391.0,99390.0,0.0025697]
[1763084321160,0.75809361,99391.0,99390.0,0.0025697]
[1763084321610,0.75809361,99391.0,99390.0,0.0015697]
[1763084323298,0.6904329,99391.0,99390.0,0.0015697]
[1763084324593,0.6904329,99391.0,99390.0,0.0005697]
[1763084325010,0.6904329,99391.0,99390.0,0.00200805]
[1763084325444,0.6904329,99391.0,99390.0,0.00100805]
[1763084325874,0.6904329,99391.0,99390.0,0.00200805]
[1763084326079,0.78891626,99391.0,99390.0,0.00200805]
[1763084326293,0.5552708,99391.0,99390.0,0.00200805]
[1763084326535,0.75649626,99391.0,99390.0,0.00200805]
[1763084326746,0.78891626,99391.0,99390.0,0.00200805]
[1763084326980,0.6904329,99391.0,99390.0,0.00200805]
[1763084330936,0.20127001,99369.0,99368.0,0.00489655]
[1763084331151,0.20127001,99369.0,99368.0,0.00535432]
[1763084331329,0.20126831,99370.0,99368.0,0.00535432]
[1763084331561,0.20127001,99369.0,99368.0,0.00535432]
[1763084331763,0.29163871,99369.0,99368.0,0.00535432]
[1763084332175,0.29163871,99369.0,99368.0,0.00635432]
[1763084332557,0.29163871,99369.0,99368.0,0.00535432]
[1763084332999,0.20127001,99369.0,99368.0,0.00535432]
[1763084333204,0.20127001,99369.0,99368.0,0.00635432]
[1763084334028,0.20127001,99369.0,99368.0,0.00735432]
[1763084334235,0.26165035,99369.0,99368.0,0.00735432]
[1763084334778,0.20127001,99369.0,99368.0,0.00735432]
[1763084336403,0.52425178,99378.0,99377.0,0.03233]
[1763084336602,0.20127001,99369.0,99368.0,0.00735432]
[1763084336803,0.323,99378.0,99368.0,0.00735432]
[1763084337007,0.20125381,99377.0,99370.0,0.20126728]
[1763084337250,0.56023979,99390.0,99377.0,0.02883]
[1763084337430,0.01006137,99390.0,99386.0,0.02883]
[1763084337635,0.20122631,99391.0,99389.0,0.03745]
[1763084337878,0.20120724,99400.0,99399.0,0.02883]
[1763084338065,0.20120523,99401.0,99399.0,0.02883]
[1763084338266,0.0903687,99413.0,99409.0,0.02883]
[1763084338470,0.00903687,99412.0,99391.0,0.20122432]
[1763084338728,0.20122324,99393.0,99389.0,0.00862]
[1763084338904,0.20121736,99395.0,99389.0,0.20984896]
[1763084339106,0.20121965,99394.0,99391.0,0.20122489]
[1763084339336,0.20122664,99391.0,99389.0,0.00875716]
[1763084339766,0.20120725,99400.0,99395.0,0.20121645]
[1763084339989,0.20120725,99400.0,99390.0,0.02883]
[1763084339990,0.20120489,99402.0,99398.0,0.23004091]
[1763084340201,0.0903687,99413.0,99409.0,0.02883]
[1763084340421,0.20118093,99413.0,99412.0,0.02883]
[1763084340632,0.52418093,99413.0,99412.0,0.02883]
[1763084340845,0.62266429,99413.0,99412.0,0.02883]
[1763084341069,0.42148336,99413.0,99399.0,0.02883]
[1763084341244,0.52418093,99413.0,99412.0,0.02883]
[1763084341613,0.56023675,99420.0,99399.0,0.02883]
[1763084341614,0.20119508,99407.0,99399.0,0.02883]
[1763084341828,0.323,99419.0,99403.0,0.20120009]
[1763084342028,0.323,99421.0,99399.0,0.02883]
[1763084342029,0.323,99416.0,99399.0,0.02883]
[1763084342248,0.55017842,99410.0,99391.0,0.02883]
[1763084342505,0.323,99419.0,99391.0,0.02883]
[1763084342738,0.52416879,99419.0,99418.0,0.04903]
[1763084342971,0.20116879,99419.0,99418.0,0.04903]
[1763084343203,0.21122519,99420.0,99418.0,0.04903]
[1763084343406,0.01005732,99430.0,99427.0,0.02883]
[1763084343622,0.2112046,99430.0,99428.0,0.02883]
[1763084343860,0.56023473,99440.0,99429.0,0.02883]
[1763084343861,0.2011355,99436.0,99429.0,0.02883]
[1763084344070,0.20112832,99439.0,99438.0,0.03745]
[1763084344301,0.20112832,99439.0,99438.0,0.00862]
[1763084344714,0.52412832,99439.0,99438.0,0.00875716]
[1763084345789,0.323,99439.0,99438.0,0.00875716]
[1763084345994,0.323,99439.0,99438.0,0.00975716]
[1763084346749,0.323,99439.0,99438.0,0.01175716]
[1763084346964,0.42148336,99439.0,99438.0,0.01175716]
[1763084347170,0.42148336,99439.0,99438.0,0.00313716]
[1763084347549,0.323,99439.0,99438.0,0.00313716]
[1763084347971,0.35231,99439.0,99438.0,0.00213716]
[1763084348690,0.35231,99439.0,99438.0,0.00013716]
[1763084349097,0.35231,99439.0,99438.0,0.00113716]
[1763084349557,0.39572874,99439.0,99438.0,0.00113716]
[1763084349745,0.4942121,99439.0,99438.0,0.00113716]
[1763084350317,0.4942121,99439.0,99438.0,0.00013716]
[1763084350678,0.4942121,99439.0,99438.0,0.00113716]
[1763084350875,0.4942121,99439.0,99438.0,1e-08]
[1763084351488,0.39572874,99439.0,99438.0,1e-08]
[1763084351889,0.20117837,99415.0,99410.0,0.0202]
[1763084352087,0.20118366,99412.0,99410.0,0.02033739]
[1763084352721,0.20117465,99417.0,99410.0,0.02033739]
[1763084352918,0.323,99427.0,99410.0,0.02033739]
[1763084353140,0.20118366,99412.0,99410.0,0.02133739]
[1763084353319,0.323,99419.0,99410.0,0.02133739]
[1763084353495,0.20118361,99412.0,99410.0,0.02133739]
[1763084353696,0.20118361,99412.0,99410.0,0.02033739]
[1763084354507,0.1136187,99411.0,99410.0,0.00013739]
[1763084354703,0.20545262,99411.0,99410.0,0.00013739]
[1763084354888,0.20545262,99411.0,99410.0,0.00113739]
[1763084355132,0.20118497,99411.0,99410.0,0.00113739]
[1763084355332,0.20118497,99411.0,99410.0,0.00013739]
[1763084355714,0.20118497,99411.0,99410.0,0.00113739]
[1763084356113,0.20118497,99411.0,99410.0,0.00013739]
[1763084356536,0.20118497,99411.0,99410.0,0.00113739]
[1763084356715,0.24762339,99411.0,99410.0,0.00113739]
[1763084356985,0.20118497,99411.0,99410.0,0.00113739]
[1763084357690,0.323,99419.0,99410.0,0.00113739]
[1763084357861,0.22443497,99411.0,99410.0,0.00013739]
[1763084358061,0.25374497,99411.0,99410.0,0.00013739]
[1763084358277,0.34850997,99411.0,99410.0,0.00113739]
[1763084358701,0.34850997,99411.0,99410.0,0.00013739]
[1763084359146,0.34850997,99411.0,99410.0,0.00113739]
[1763084360246,0.25374497,99411.0,99410.0,0.00113739]
[1763084360458,0.22443497,99411.0,99410.0,0.00113739]
[1763084360677,0.25374497,99411.0,99410.0,0.00113739]
[1763084362073,0.22443497,99411.0,99410.0,0.00113739]
[1763084362844,0.23049497,99411.0,99410.0,0.00113739]
[1763084363206,0.24556852,99411.0,99410.0,0.00113739]
[1763084363630,0.56856852,99411.0,99410.0,0.00113739]
[1763084363839,0.20124368,99382.0,99381.0,0.00023212]
[1763084364076,0.25380368,99382.0,99381.0,0.00068989]
[1763084364650,0.55142109,99400.0,99390.0,0.00684]
[1763084364845,0.20122546,99391.0,99390.0,0.00684]
[1763084365049,0.20122252,99393.0,99390.0,0.00684]
[1763084365408,0.20122546,99391.0,99390.0,0.00684]
[1763084366449,0.20122252,99393.0,99390.0,0.00784]
[1763084366604,0.20122445,99392.0,99390.0,0.00784]
[1763084366804,0.20122445,99392.0,99390.0,0.00684]
[1763084367394,0.323,99399.0,99390.0,0.00784]
[1763084367619,0.09848336,99398.0,99390.0,0.00784]
[1763084367823,0.323,99399.0,99390.0,0.00684]
[1763084368054,0.20121129,99398.0,99393.0,0.20121964]
[1763084368262,0.0903687,99400.0,99399.0,0.02476]
[1763084368477,0.29157722,99400.0,99399.0,0.02476]
[1763084370525,0.29157722,99400.0,99399.0,0.02576]
[1763084371130,0.211248,99410.0,99399.0,0.02576]
[1763084371376,0.20120147,99403.0,99399.0,0.02576]
[1763084371677,0.20120534,99401.0,99399.0,0.02576]
[1763084371887,0.20120534,99401.0,99399.0,0.02476]
[1763084372304,0.20120318,99403.0,99399.0,0.02476]
[1763084372839,0.21124789,99410.0,99408.0,0.02476]
[1763084373054,0.21124789,99410.0,99409.0,0.02476]
[1763084373284,0.0758901,99410.0,99399.0,4e-05]
[1763084373487,0.64483594,99400.0,99399.0,4e-05]
[1763084374092,0.68825468,99400.0,99399.0,4e-05]
[1763084374682,0.5676442,99391.0,99390.0,4e-05]
[1763084374857,0.6191742,99391.0,99390.0,4e-05]
[1763084375182,0.71765756,99391.0,99390.0,4e-05]
[1763084375865,0.71865756,99391.0,99390.0,4e-05]
[1763084376517,0.71865756,99391.0,99380.0,0.41839735]
[1763084376518,0.39667874,99381.0,99380.0,0.41839735]
[1763084376747,0.39667874,99381.0,99380.0,0.0117055]
[1763084376748,2.55322572,99381.0,99380.0,0.0117055]
[1763084376952,2.55322572,99381.0,99360.0,0.0004]
[1763084376953,0.56768875,99369.0,99360.0,0.0004]
[1763084377168,0.59794875,99369.0,99360.0,0.0004]
[1763084378608,0.59894875,99369.0,99360.0,0.0004]
[1763084379014,0.59794875,99369.0,99360.0,0.0004]
[1763084379218,0.69643211,99369.0,99360.0,0.0004]
[1763084380623,0.56768875,99369.0,99361.0,0.01793]
[1763084380852,0.52527001,99369.0,99361.0,0.01793]
[1763084381050,0.52427001,99369.0,99361.0,0.01793]
[1763084382041,0.52427001,99369.0,99368.0,0.00493655]
[1763084382439,0.323,99369.0,99368.0,0.00627188]
[1763084382973,0.37542693,99369.0,99368.0,0.00627188]
[1763084383372,0.20126724,99371.0,99368.0,0.00627188]
[1763084383592,0.20126724,99371.0,99368.0,0.00593655]
[1763084383806,0.323,99372.0,99368.0,0.00593655]
[1763084384223,0.323,99372.0,99368.0,0.00493655]
[1763084384454,0.20127001,99369.0,99368.0,0.00493655]
[1763084384678,0.20127001,99369.0,99368.0,0.00593655]
[1763084385081,0.20126084,99374.0,99368.0,0.00493655]
[1763084385295,0.20126884,99370.0,99368.0,0.00493655]
[1763084385517,0.20126884,99370.0,99368.0,0.00593655]
[1763084386734,0.20126884,99370.0,99368.0,0.00493655]
[1763084386946,0.20124929,99380.0,99368.0,0.00493655]
[1763084386947,0.00045828,99381.0,99368.0,0.00493655]
[1763084387180,0.20124976,99379.0,99377.0,0.02476]
[1763084387787,0.20126798,99370.0,99369.0,0.02476]
[1763084388052,0.23152903,99370.0,99368.0,0.00593655]
[1763084388211,0.03026,99369.0,99368.0,0.00593655]
[1763084388482,0.03026,99369.0,99368.0,0.00493655]
[1763084388627,0.35326,99369.0,99368.0,0.00493655]
[1763084388829,0.45174336,99369.0,99368.0,0.00493655]
[1763084389120,0.45174336,99369.0,99368.0,0.00527188]
[1763084389961,0.35326,99369.0,99368.0,0.00527188]
[1763084391139,0.35326,99369.0,99368.0,1e-08]
[1763084391140,0.39667874,99369.0,99368.0,1e-08]
[1763084391346,0.56770495,99361.0,99360.0,0.0004]
[1763084391540,0.66368495,99361.0,99360.0,0.0004]
[1763084391878,0.76216831,99361.0,99360.0,0.0004]
[1763084393368,0.76316831,99361.0,99360.0,0.0004]
[1763084396149,0.59100621,99361.0,99360.0,0.0004]
[1763084396358,0.38972,99361.0,99360.0,0.0004]
[1763084396525,0.324,99361.0,99360.0,0.0004]
[1763084396725,0.001,99361.0,99360.0,0.0004]
[1763084397165,0.43780239,99370.0,99364.0,0.20128014]
[1763084397351,0.20128537,99362.0,99360.0,0.0004]
[1763084397599,0.323,99366.0,99360.0,0.0004]
[1763084397769,0.20128482,99362.0,99360.0,0.0004]
[1763084399208,0.20128482,99362.0,99360.0,0.0014]
[1763084399565,0.20128482,99362.0,99360.0,0.0004]
[1763084399765,0.20128482,99362.0,99360.0,0.0014]
[1763084400319,0.26305766,99362.0,99360.0,0.0014]
[1763084400531,0.20128621,99361.0,99360.0,0.0014]
[1763084400724,0.29165491,99361.0,99360.0,0.0014]
[1763084401687,0.64595491,99361.0,99360.0,0.0014]
[1763084401933,0.64595491,99361.0,99360.0,0.0004]
[1763084402140,0.74443827,99361.0,99360.0,0.0004]
[1763084402453,0.78785701,99361.0,99360.0,0.0014]
[1763084402653,0.39771874,99360.0,99359.0,1e-08]
[1763084402823,0.62121521,99351.0,99350.0,1e-08]
[1763084403001,0.80970238,99351.0,99350.0,1e-08]
[1763084403201,0.81912047,99351.0,99350.0,1e-08]
[1763084403405,2.82315307,99351.0,99350.0,1e-08]
[1763084403821,2.85022455,99351.0,99350.0,1e-08]
[1763084404030,2.85068255,99351.0,99350.0,1e-08]
[1763084404233,2.82361107,99351.0,99350.0,1e-08]
[1763084404446,2.85070332,99351.0,99350.0,1e-08]
[1763084404861,2.82361107,99351.0,99350.0,1e-08]
[1763084405074,0.74135909,99351.0,99350.0,1e-08]
[1763084405312,0.731941,99351.0,99350.0,1e-08]
[1763084405464,0.7299084,99351.0,99350.0,1e-08]
[1763084405676,0.7329408,99351.0,99350.0,1e-08]
[1763084406076,0.7339408,99351.0,99350.0,1e-08]
[1763084406302,0.83042416,99351.0,99350.0,1e-08]
[1763084406530,0.83242416,99351.0,99350.0,1e-08]
[1763084406746,2.83242416,99351.0,99350.0,1e-08]
[1763084406955,2.84182604,99351.0,99350.0,1e-08]
[1763084407159,2.84182604,99351.0,99330.0,1e-08]
[1763084407160,0.62328575,99331.0,99330.0,1e-08]
[1763084407362,0.62328575,99331.0,99310.0,0.00090347]
[1763084407363,0.5678063,99311.0,99310.0,0.00090347]
[1763084407604,0.6890863,99311.0,99310.0,0.00090347]
[1763084408618,0.68954401,99311.0,99310.0,0.00090347]
[1763084409283,0.77991271,99311.0,99310.0,0.00090347]
[1763084409488,0.56782658,99301.0,99300.0,5.1e-05]
[1763084409638,0.59968658,99301.0,99300.0,5.1e-05]
[1763084411038,0.20140583,99302.0,99290.0,0.0004]
[1763084411039,0.62336686,99291.0,99290.0,1e-08]
[1763084411295,0.87797892,99291.0,99290.0,1e-08]
[1763084412375,0.88401388,99291.0,99290.0,1e-08]
[1763084412775,0.88401388,99291.0,99290.0,0.00154916]
[1763084412992,2.88301388,99291.0,99290.0,1e-08]
[1763084413201,2.88201388,99291.0,99290.0,1e-08]
[1763084413407,2.88201388,99291.0,99270.0,0.0004]